fUSD/lending_fUSD_20250526
["ID","MTS","AMOUNT","RATE_DAILY","PERIOD"]
[362404273,1748253094384,-150.0,0.0004252,30]
[362404274,1748253094394,-243.22904252,0.00042525,30]
[362404275,1748253094406,-211.76312096,0.00042525,30]
[362404276,1748253094417,-150.0,0.00042548,30]
[362404277,1748253094426,-150.0,0.00042558,30]
[362404278,1748253094436,-243.22904252,0.00042572,30]
[362404279,1748253094446,-211.76312096,0.00042572,30]
[362404280,1748253094456,-300.0,0.00042576,30]
[362404281,1748253094466,-150.0,0.00042578,30]
[362404282,1748253094475,-150.0,0.00042578,30]
[362404283,1748253094485,-1567.9,0.00042603,30]
[362404284,1748253094494,-243.22904252,0.00042619,30]
[362404285,1748253094504,-211.76312096,0.00042619,30]
[362404286,1748253094513,-150.0,0.00042619,30]
[362404287,1748253094523,-150.0,0.00042629,30]
[362404288,1748253094532,-150.0,0.00042629,30]
[362404289,1748253094542,-150.0,0.00042654,30]
[362404290,1748253094551,-8043.95911826,0.00042655,10]
[362404291,1748253094560,-5000.0,0.00042655,10]
[362404292,1748253094572,-5000.0,0.00042655,10]
[362404293,1748253094582,-5000.0,0.00042655,6]
[362404294,1748253094591,-243.22904252,0.00042666,30]
[362404295,1748253094600,-211.76312096,0.00042666,30]
[362404296,1748253094610,-150.0,0.00042689,30]
[362404297,1748253094620,-150.0,0.00042689,30]
[362404298,1748253094629,-150.0,0.00042701,30]
[362404299,1748253094639,-243.22904252,0.00042713,30]
[362404300,1748253094648,-211.76312096,0.00042713,30]
[362404301,1748253094658,-150.0,0.00042723,30]
[362404302,1748253094667,-500.0,0.00042734,60]
[362404303,1748253094677,-500.0,0.00042734,60]
[362404304,1748253094686,-170.24,0.0004274,30]
[362404305,1748253094695,-162.93,0.0004274,30]
[362404306,1748253094704,-353.71,0.0004274,30]
[362404307,1748253094714,-453.7,0.0004274,30]
[362404308,1748253094723,-453.7,0.0004274,30]
[362404309,1748253094733,-353.71,0.0004274,30]
[362404310,1748253094742,-453.7,0.0004274,30]
[362404311,1748253094753,-353.71,0.0004274,30]
[362404312,1748253094762,-353.71,0.0004274,30]
[362404313,1748253094772,-353.71,0.0004274,30]
[362404314,1748253094782,-453.7,0.0004274,30]
[362404315,1748253094793,-353.71,0.0004274,30]
[362404316,1748253094803,-453.7,0.0004274,30]
[362404317,1748253094814,-453.7,0.0004274,30]
[362404318,1748253094823,-453.7,0.0004274,30]
[362404319,1748253094832,-200.0,0.00042755,7]
[362404320,1748253094842,-200.0,0.00042755,7]
[362404321,1748253094851,-200.0,0.00042755,7]
[362404322,1748253094861,-243.22904252,0.0004276,30]
[362404323,1748253094871,-211.76312096,0.0004276,30]
[362404324,1748253094880,-150.0,0.0004276,30]
[362404325,1748253094890,-150.0,0.0004276,30]
[362404326,1748253094901,-150.0,0.00042773,30]
[362404327,1748253094911,-2000.0,0.0004278,45]
[362404328,1748253094920,-150.0,0.00042797,120]
[362404329,1748253094930,-243.22904252,0.00042807,30]
[362404330,1748253094939,-211.76312096,0.00042807,30]
[362404331,1748253094948,-150.0,0.00042844,30]
[362404332,1748253094958,-243.22904252,0.00042854,30]
[362404333,1748253094968,-211.76312096,0.00042854,30]
[362404334,1748253094977,-150.0,0.00042866,30]
[362404335,1748253094987,-15248.22498235,0.000429,12]
[362404336,1748253094996,-808.56266409,0.000429,120]
[362404337,1748253095006,-243.22904252,0.00042901,30]
[362404338,1748253095016,-211.76312096,0.00042901,30]
[362404339,1748253095025,-150.0,0.00042901,30]
[362404340,1748253095034,-150.0,0.00042916,30]
[362404341,1748253095044,-150.0,0.00042925,30]
[362404342,1748253095057,-243.22904252,0.00042948,30]
[362404343,1748253095067,-211.76312096,0.00042948,30]
[362404344,1748253095076,-150.0,0.00042971,30]
[362404345,1748253095086,-150.0,0.00042988,30]
[362404346,1748253095096,-150.0,0.00042988,30]
[362404347,1748253095105,-243.22904252,0.00042995,30]
[362404348,1748253095115,-211.76312096,0.00042995,30]
[362404349,1748253095124,-50000.0,0.00043,43]
[362404350,1748253095135,-214.0,0.00043,7]
[362404351,1748253095144,-1000.0,0.00043,2]
[362404352,1748253095160,-150.0,0.00043,10]
[362404353,1748253095170,-50000.0,0.00043,28]
[362404354,1748253095180,-5128.89847088,0.00043,15]
[362404355,1748253095189,-1574.0,0.00043,120]
[362404356,1748253095199,-2847.21689168,0.00043,120]
[362404357,1748253095209,-2806.37108159,0.00043,120]
[362404358,1748253095218,-1804.77677358,0.00043,30]
[362404359,1748253095228,-964.54720091,0.00043,120]
[362404360,1748253095238,-494.25592062,0.00043,120]
[362404361,1748253095247,-2395.51,0.00043,120]
[362404362,1748253095257,-6064.75,0.00043,120]
[362404363,1748253095267,-950.0,0.00043,2]
[362404364,1748253095277,-243.22904252,0.00043042,30]
[362404365,1748253095286,-211.76312096,0.00043042,30]
[362404366,1748253095296,-150.0,0.00043042,30]
[362404367,1748253095305,-150.0,0.00043059,30]
[362404368,1748253095315,-150.0,0.00043077,30]
[362404369,1748253095324,-150.0,0.00043077,30]
[362404370,1748253095334,-150.0,0.00043077,30]
[362404371,1748253095343,-150.0,0.00043077,30]
[362404372,1748253095353,-150.0,0.00043085,120]
[362404373,1748253095363,-243.22904252,0.00043089,30]
[362404374,1748253095372,-211.76312096,0.00043089,30]
[362404375,1748253095383,-300.0,0.00043124,30]
[362404376,1748253095396,-150.0,0.00043128,30]
[362404377,1748253095408,-3010.06563454,0.0004313,120]
[362404378,1748253095418,-150.0,0.00043131,30]
[362404379,1748253095428,-243.22904252,0.00043136,30]
[362404380,1748253095438,-211.76312096,0.00043136,30]
[362404381,1748253095447,-200.36,0.00043151,4]
[362404382,1748253095456,-200.0,0.00043183,7]
[362404383,1748253095466,-200.0,0.00043183,7]
[362404384,1748253095603,-243.22904252,0.00043183,30]
[362404385,1748253095635,-211.76312096,0.00043183,30]
[362404386,1748253095645,-150.0,0.00043183,30]
[362404387,1748253095662,-150.0,0.00043183,30]
[362404388,1748253095671,-150.0,0.00043203,30]
[362404389,1748253095682,-243.22904252,0.0004323,30]
[362404390,1748253095691,-211.76312096,0.0004323,30]
[362404391,1748253095700,-150.0,0.00043244,30]
[362404392,1748253095710,-150.0,0.00043244,30]
[362404393,1748253095719,-2000.0,0.0004325,45]
[362404394,1748253095728,-150.0,0.00043267,120]
[362404395,1748253095738,-150.0,0.00043274,30]
[362404396,1748253095748,-243.22904252,0.00043277,30]
[362404397,1748253095757,-211.76312096,0.00043277,30]
[362404398,1748253095767,-452.35,0.00043287,120]
[362404399,1748253095776,-150.0,0.00043289,30]
[362404400,1748253095785,-243.22904252,0.00043324,30]
[362404401,1748253095795,-211.76312096,0.00043324,30]
[362404402,1748253095804,-150.0,0.00043324,30]
[362404403,1748253095813,-150.0,0.0004333,30]
[362404404,1748253095822,-150.0,0.00043346,30]
[362404405,1748253095831,-150.0,0.00043346,30]
[362404406,1748253095840,-150.0,0.00043364,120]
[362404407,1748253095850,-243.22904252,0.00043371,30]
[362404408,1748253095859,-211.76312096,0.00043371,30]
[362404409,1748253095869,-150.0,0.00043395,30]
[362404410,1748253095878,-150.0,0.00043418,30]
[362404411,1748253095888,-243.22904252,0.00043418,30]
[362404412,1748253095898,-211.76312096,0.00043418,30]
[362404413,1748253095911,-150.0,0.00043465,30]
[362404414,1748253095920,-243.22904252,0.00043465,30]
[362404415,1748253095930,-211.76312096,0.00043465,30]
[362404416,1748253095939,-150.0,0.00043465,30]
[362404417,1748253095949,-150.0,0.00043465,30]
[362404418,1748253095958,-1759.84092799,0.0004347,30]
[362404419,1748253095967,-150.0,0.00043489,30]
[362404420,1748253095977,-50000.0,0.000435,28]
[362404421,1748253095986,-160.0,0.000435,48]
[362404422,1748253095995,-160.0,0.000435,48]
[362404423,1748253096005,-150.0,0.00043501,30]
[362404424,1748253096014,-243.22904252,0.00043512,30]
[362404425,1748253096024,-211.76312096,0.00043512,30]
[362404426,1748253096034,-150.0,0.00043533,30]
[362404427,1748253096043,-243.22904252,0.00043559,30]
[362404428,1748253096055,-211.76312096,0.00043559,30]
[362404429,1748253096064,-150.0,0.00043561,30]
[362404430,1748253096073,-170.26,0.00043562,30]
[362404431,1748253096082,-170.26,0.00043562,30]
[362404432,1748253096092,-170.26,0.00043562,30]
[362404433,1748253096101,-170.26,0.00043562,30]
[362404434,1748253096110,-170.26,0.00043562,30]
[362404435,1748253096120,-172.55,0.00043562,30]
[362404436,1748253096133,-449.26,0.00043562,30]
[362404437,1748253096143,-325.66,0.00043562,30]
[362404438,1748253096156,-170.24,0.00043562,30]
[362404439,1748253096166,-353.65,0.00043562,30]
[362404440,1748253096175,-761.01,0.000436,120]
[362404441,1748253096184,-4115.88,0.000436,120]
[362404442,1748253096194,-243.22904252,0.00043606,30]
[362404443,1748253096204,-211.76312096,0.00043606,30]
[362404444,1748253096213,-150.0,0.00043606,30]
[362404445,1748253096223,-150.0,0.00043606,30]
[362404446,1748253096232,-150.0,0.00043633,30]
[362404447,1748253096241,-243.22904252,0.00043653,30]
[362404448,1748253096251,-211.76312096,0.00043653,30]
[362404449,1748253096260,-150.0,0.00043661,120]
[362404450,1748253096270,-300.0,0.00043672,30]
[362404451,1748253096279,-2964.93141274,0.000437,120]
[362404452,1748253096288,-243.22904252,0.00043701,30]
[362404453,1748253096298,-211.76312096,0.00043701,30]
[362404454,1748253096308,-150.0,0.00043704,30]
[362404455,1748253096319,-150.0,0.00043704,30]
[362404456,1748253096328,-150.0,0.00043712,30]
[362404457,1748253096338,-150.0,0.00043735,30]
[362404458,1748253096347,-243.22904252,0.00043748,30]
[362404459,1748253096357,-211.76312096,0.00043748,30]
[362404460,1748253096366,-150.0,0.00043748,30]
[362404461,1748253096376,-150.0,0.00043776,30]
[362404462,1748253096386,-838.61,0.00043779,2]
[362404463,1748253096396,-243.22904252,0.00043795,30]
[362404464,1748253096410,-211.76312096,0.00043795,30]
[362404465,1748253096419,-198.25652884,0.000438,120]
[362404466,1748253096429,-483.73557449,0.000438,30]
[362404467,1748253096438,-150.0,0.00043818,30]
[362404468,1748253096447,-500.0,0.0004383,120]
[362404469,1748253096457,-500.0,0.0004383,120]
[362404470,1748253096466,-2727.2025,0.00043835,10]
[362404471,1748253096476,-174.38887483,0.00043836,28]
[362404472,1748253096485,-243.22904252,0.00043842,30]
[362404473,1748253096495,-211.76312096,0.00043842,30]
[362404474,1748253096504,-150.0,0.00043847,30]
[362404475,1748253096514,-150.0,0.00043853,30]
[362404476,1748253096524,-150.0,0.00043853,30]
[362404477,1748253096533,-243.22904252,0.00043889,30]
[362404478,1748253096543,-211.76312096,0.00043889,30]
[362404479,1748253096552,-150.0,0.00043889,30]
[362404480,1748253096562,-67343.19718093,0.000439,15]
[362404481,1748253096571,-150.0,0.00043909,30]
[362404482,1748253096580,-150.0,0.00043909,30]
[362404483,1748253096590,-150.0,0.00043919,30]
[362404484,1748253096599,-150.0,0.00043924,30]
[362404485,1748253096609,-243.22904252,0.00043936,30]
[362404486,1748253096619,-211.76312096,0.00043936,30]
[362404487,1748253096629,-150.0,0.00043938,30]
[362404488,1748253096640,-4289.6810822,0.0004397,2]
[362404489,1748253096652,-103260.5413595,0.0004397,2]
[362404490,1748253096663,-12098.3432982,0.0004397,2]
[362404491,1748253096673,-243.22904252,0.00043983,30]
[362404492,1748253096682,-211.76312096,0.00043983,30]
[362404493,1748253096691,-6137.61040605,0.00043987,120]
[362404494,1748253096701,-150.0,0.00043991,30]
[362404495,1748253096710,-50000.0,0.00044,44]
[362404496,1748253096720,-4182.32261023,0.00044,15]
[362404497,1748253096730,-5812.13063496,0.00044,120]
[362404498,1748253096740,-150.0,0.00044,10]
[362404499,1748253096749,-50000.0,0.00044,29]
[362404500,1748253096759,-1012.24170663,0.00044,120]
[362404501,1748253096768,-13548.88419266,0.00044,3]
[362404502,1748253096778,-1406.96895574,0.00044,120]
[362404503,1748253096788,-527.101331,0.00044,57]
[362404504,1748253096798,-243.22904252,0.0004403,30]
[362404505,1748253096807,-211.76312096,0.0004403,30]
[362404506,1748253096816,-150.0,0.0004403,30]
[362404507,1748253096825,-150.0,0.0004403,30]
[362404508,1748253096835,-150.0,0.00044062,30]
[362404509,1748253096844,-150.0,0.00044062,30]
[362404510,1748253096854,-2110.0,0.00044075,30]
[362404511,1748253096863,-243.22904252,0.00044077,30]
[362404512,1748253096872,-211.76312096,0.00044077,30]
[362404513,1748253096881,-1283.35626186,0.000441,120]
[362404514,1748253096890,-243.22904252,0.00044124,30]
[362404515,1748253096902,-211.76312096,0.00044124,30]
[362404516,1748253096912,-152.0,0.00044129,9]
[362404517,1748253096924,-165.90056559,0.00044129,5]
[362404518,1748253096934,-150.0,0.00044134,30]
[362404519,1748253096943,-150.0,0.00044136,30]
[362404520,1748253096952,-150.0,0.0004414,30]
[362404521,1748253096962,-223.72178615,0.00044164,21]
[362404522,1748253096971,-243.22904252,0.00044171,30]
[362404523,1748253096981,-211.76312096,0.00044171,30]
[362404524,1748253096991,-150.0,0.00044171,30]
[362404525,1748253097002,-150.0,0.00044206,30]
[362404526,1748253097011,-243.22904252,0.00044218,30]
[362404527,1748253097020,-211.76312096,0.00044218,30]
[362404528,1748253097029,-300.0,0.0004422,30]
[362404529,1748253097039,-150.0,0.00044242,30]
[362404530,1748253097048,-150.0,0.00044242,30]
[362404531,1748253097061,-150.0,0.00044242,30]
[362404532,1748253097071,-150.0,0.00044242,30]
[362404533,1748253097080,-793.38109653,0.00044246,30]
[362404534,1748253097090,-16000.0,0.00044246,2]
[362404535,1748253097101,-243.22904252,0.00044265,30]
[362404536,1748253097110,-211.76312096,0.00044265,30]
[362404537,1748253097120,-150.0,0.00044277,30]
[362404538,1748253097129,-243.22904252,0.00044312,30]
[362404539,1748253097141,-211.76312096,0.00044312,30]
[362404540,1748253097155,-150.0,0.00044312,30]
[362404541,1748253097164,-150.0,0.00044343,30]
[362404542,1748253097173,-150.0,0.00044347,30]
[362404543,1748253097184,-150.0,0.00044349,30]
[362404544,1748253097193,-243.22904252,0.00044359,30]
[362404545,1748253097202,-211.76312096,0.00044359,30]
[362404546,1748253097211,-500.0,0.00044378,120]
[362404547,1748253097221,-500.0,0.00044378,120]
[362404548,1748253097230,-162.93,0.00044384,30]
[362404549,1748253097239,-150.49,0.00044384,30]
[362404550,1748253097249,-150.49,0.00044384,30]
[362404551,1748253097259,-150.49,0.00044384,30]
[362404552,1748253097268,-150.49,0.00044384,30]
[362404553,1748253097277,-150.46,0.00044384,30]
[362404554,1748253097286,-496.24654549,0.0004439,120]
[362404555,1748253097296,-1904.05655431,0.000444,120]
[362404556,1748253097305,-1820.91077746,0.000444,120]
[362404557,1748253097314,-243.22904252,0.00044406,30]
[362404558,1748253097324,-211.76312096,0.00044406,30]
[362404559,1748253097334,-150.0,0.00044421,30]
[362404560,1748253097344,-150.0,0.00044421,30]
[362404561,1748253097353,-243.22904252,0.00044453,30]
[362404562,1748253097362,-211.76312096,0.00044453,30]
[362404563,1748253097372,-150.0,0.00044453,30]
[362404564,1748253097381,-150.0,0.00044453,30]
[362404565,1748253097391,-150.0,0.00044492,30]
[362404566,1748253097403,-160.0,0.000445,52]
[362404567,1748253097413,-160.0,0.000445,52]
[362404568,1748253097422,-449.89710638,0.000445,120]
[362404569,1748253097432,-243.22904252,0.000445,30]
[362404570,1748253097441,-211.76312096,0.000445,30]
[362404571,1748253097451,-150.0,0.00044545,30]
[362404572,1748253097461,-243.22904252,0.00044547,30]
[362404573,1748253097470,-211.76312096,0.00044547,30]
[362404574,1748253097480,-150.0,0.00044559,30]
[362404575,1748253097490,-150.0,0.00044564,30]
[362404576,1748253097500,-150.0,0.00044574,30]
[362404577,1748253097510,-150.0,0.00044574,30]
[362404578,1748253097519,-2110.0,0.00044575,30]
[362404579,1748253097529,-243.22904252,0.00044594,30]
[362404580,1748253097538,-211.76312096,0.00044594,30]
[362404581,1748253097548,-150.0,0.00044594,30]
[362404582,1748253097557,-150.0,0.0004463,30]
[362404583,1748253097567,-150.0,0.0004463,30]
[362404584,1748253097576,-150.0,0.00044636,30]
[362404585,1748253097586,-243.22904252,0.00044641,30]
[362404586,1748253097596,-211.76312096,0.00044641,30]
[362404587,1748253097606,-452.35,0.00044657,120]
[362404588,1748253097615,-150.0,0.00044665,30]
[362404589,1748253097624,-243.22904252,0.00044688,30]
[362404590,1748253097633,-211.76312096,0.00044688,30]
[362404591,1748253097643,-2848.96139,0.00044707,30]
[362404592,1748253097656,-150.0,0.00044707,30]
[362404593,1748253097665,-243.22904252,0.00044735,30]
[362404594,1748253097675,-211.76312096,0.00044735,30]
[362404595,1748253097685,-150.0,0.00044735,30]
[362404596,1748253097694,-150.0,0.00044748,30]
[362404597,1748253097708,-150.0,0.00044749,120]
[362404598,1748253097717,-300.0,0.00044768,30]
[362404599,1748253097727,-150.0,0.00044771,30]
[362404600,1748253097736,-150.0,0.00044779,30]
[362404601,1748253097746,-150.0,0.00044779,30]
[362404602,1748253097756,-243.22904252,0.00044782,30]
[362404603,1748253097765,-211.76312096,0.00044782,30]
[362404604,1748253097775,-243.22904252,0.0004483,30]
[362404605,1748253097784,-211.76312096,0.0004483,30]
[362404606,1748253097794,-150.0,0.0004485,30]
[362404607,1748253097803,-2000.0,0.0004487,43]
[362404608,1748253097812,-243.22904252,0.00044877,30]
[362404609,1748253097823,-211.76312096,0.00044877,30]
[362404610,1748253097833,-150.0,0.00044877,30]
[362404611,1748253097842,-150.0,0.00044877,30]
[362404612,1748253097970,-193.71295997,0.000449,30]
[362404613,1748253098007,-434.51976096,0.000449,30]
[362404614,1748253098016,-150.0,0.00044922,30]
[362404615,1748253098026,-243.22904252,0.00044924,30]
[362404616,1748253098036,-211.76312096,0.00044924,30]
[362404617,1748253098045,-511.75634896,0.00044926,120]
[362404618,1748253098055,-500.0,0.00044926,120]
[362404619,1748253098065,-150.0,0.00044932,30]
[362404620,1748253098075,-150.0,0.00044932,30]
[362404621,1748253098084,-150.0,0.00044932,30]
[362404622,1748253098093,-150.0,0.0004495,30]
[362404623,1748253098103,-4684.8155933,0.00044969,2]
[362404624,1748253098113,-112772.1583641,0.00044969,2]
[362404625,1748253098122,-13212.7555057,0.00044969,2]
[362404626,1748253098132,-243.22904252,0.00044971,30]
[362404627,1748253098141,-211.76312096,0.00044971,30]
[362404628,1748253098154,-150.0,0.00044982,30]
[362404629,1748253098164,-27752.12140986,0.00044989,120]
[362404630,1748253098174,-217.0,0.0004499,30]
[362404631,1748253098183,-2059.96884403,0.0004499,30]
[362404632,1748253098192,-220.0,0.0004499,30]
[362404633,1748253098202,-211.0,0.0004499,30]
[362404634,1748253098211,-211.0,0.0004499,30]
[362404635,1748253098221,-210.0,0.0004499,30]
[362404636,1748253098230,-150.0,0.00044994,30]
[362404637,1748253098240,-50000.0,0.00045,45]
[362404638,1748253098249,-152.68560788,0.00045,14]
[362404639,1748253098259,-150.0,0.00045,10]
[362404640,1748253098268,-34059.12683419,0.00045,10]
[362404641,1748253098277,-8327.0,0.00045,13]
[362404642,1748253098287,-197387.39731856,0.00045,14]
[362404643,1748253098295,-2351.57188866,0.00045,14]
[362404644,1748253098305,-88000.0,0.00045,14]
[362404645,1748253098314,-1420.0,0.00045,120]
[362404646,1748253098323,-1574.0,0.00045,120]
[362404647,1748253098332,-540.97634935,0.00045,120]
[362404648,1748253098342,-10000.0,0.00045,120]
[362404649,1748253098351,-1737.73446113,0.00045,120]
[362404650,1748253098362,-1500.0085398,0.00045,120]
[362404651,1748253098373,-560.73093826,0.00045,32]
[362404652,1748253098383,-2246.9914916,0.00045,120]
[362404653,1748253098392,-518.7364585,0.00045,45]
[362404654,1748253098404,-2328.09502789,0.00045,120]
[362404655,1748253098414,-1086.86218028,0.00045,120]
[362404656,1748253098423,-1081.98196186,0.00045,32]
[362404657,1748253098432,-3300.27830482,0.00045,120]
[362404658,1748253098441,-2758.11103708,0.00045,120]
[362404659,1748253098451,-278.94809076,0.00045,120]
[362404660,1748253098460,-591.87264617,0.00045,10]
[362404661,1748253098470,-888.0,0.00045,120]
[362404662,1748253098479,-1000.0,0.00045,2]
[362404663,1748253098489,-400.0,0.00045,120]
[362404664,1748253098499,-200.0,0.00045,120]
[362404665,1748253098508,-10000.0,0.00045,120]
[362404666,1748253098518,-200.0,0.00045,120]
[362404667,1748253098527,-243.22904252,0.00045018,30]
[362404668,1748253098537,-211.76312096,0.00045018,30]
[362404669,1748253098547,-150.0,0.00045018,30]
[362404670,1748253098556,-150.0,0.00045018,30]
[362404671,1748253098566,-150.0,0.00045018,30]
[362404672,1748253098575,-150.0,0.00045033,120]
[362404673,1748253098585,-243.22904252,0.00045065,30]
[362404674,1748253098594,-211.76312096,0.00045065,30]
[362404675,1748253098603,-150.0,0.00045065,30]
[362404676,1748253098613,-2110.0,0.00045075,30]
[362404677,1748253098622,-150.0,0.00045088,30]
[362404678,1748253098631,-150.0,0.00045093,120]
[362404679,1748253098640,-243.22904252,0.00045112,30]
[362404680,1748253098649,-211.76312096,0.00045112,30]
[362404681,1748253098659,-150.0,0.00045137,30]
[362404682,1748253098669,-150.0,0.00045137,30]
[362404683,1748253098678,-150.0,0.00045153,30]
[362404684,1748253098687,-243.22904252,0.00045159,30]
[362404685,1748253098695,-211.76312096,0.00045159,30]
[362404686,1748253098705,-150.0,0.00045159,30]
[362404687,1748253098714,-150.0,0.00045194,30]
[362404688,1748253098723,-2000.0,0.000452,2]
[362404689,1748253098733,-3030.225,0.00045205,11]
[362404690,1748253098743,-233.04,0.00045205,120]
[362404691,1748253098751,-243.22904252,0.00045206,30]
[362404692,1748253098761,-211.76312096,0.00045206,30]
[362404693,1748253098770,-150.0,0.00045209,30]
[362404694,1748253098779,-150.0,0.00045239,30]
[362404695,1748253098788,-150.0,0.00045239,30]
[362404696,1748253098797,-243.22904252,0.00045253,30]
[362404697,1748253098807,-211.76312096,0.00045253,30]
[362404698,1748253098816,-150.0,0.0004528,30]
[362404699,1748253098825,-150.0,0.000453,30]
[362404700,1748253098835,-243.22904252,0.000453,30]
[362404701,1748253098844,-211.76312096,0.000453,30]
[362404702,1748253098853,-150.0,0.000453,30]
[362404703,1748253098863,-300.0,0.00045316,60]
[362404704,1748253098872,-243.22904252,0.00045347,30]
[362404705,1748253098881,-211.76312096,0.00045347,30]
[362404706,1748253098891,-150.0,0.00045352,30]
[362404707,1748253098900,-20375.85438683,0.00045354,120]
[362404708,1748253098910,-150.0,0.00045355,30]
[362404709,1748253098919,-150.0,0.00045361,120]
[362404710,1748253098929,-243.22904252,0.00045394,30]
[362404711,1748253098939,-211.76312096,0.00045394,30]
[362404712,1748253098948,-150.0,0.00045406,30]
[362404713,1748253098957,-150.0,0.00045406,30]
[362404714,1748253098966,-150.0,0.00045406,30]
[362404715,1748253098975,-150.0,0.00045406,30]
[362404716,1748253098985,-150.0,0.00045408,120]
[362404717,1748253098994,-150.0,0.00045424,30]
[362404718,1748253099003,-243.22904252,0.00045441,30]
[362404719,1748253099013,-211.76312096,0.00045441,30]
[362404720,1748253099022,-150.0,0.00045441,30]
[362404721,1748253099031,-500.0,0.00045474,120]
[362404722,1748253099041,-243.22904252,0.00045488,30]
[362404723,1748253099051,-211.76312096,0.00045488,30]
[362404724,1748253099063,-150.0,0.00045495,30]
[362404725,1748253099072,-150.0,0.00045495,30]
[362404726,1748253099081,-160.0,0.000455,57]
[362404727,1748253099090,-160.0,0.000455,57]
[362404728,1748253099101,-861.26535742,0.000455,120]
[362404729,1748253099110,-150.0,0.00045501,120]
[362404730,1748253099119,-150.0,0.00045512,30]
[362404731,1748253099130,-243.22904252,0.00045535,30]
[362404732,1748253099139,-211.76312096,0.00045535,30]
[362404733,1748253099150,-150.0,0.00045558,30]
[362404734,1748253099161,-150.0,0.00045567,30]
[362404735,1748253099170,-2110.0,0.00045575,30]
[362404736,1748253099180,-150.0,0.00045576,120]
[362404737,1748253099190,-243.22904252,0.00045582,30]
[362404738,1748253099199,-211.76312096,0.00045582,30]
[362404739,1748253099209,-150.0,0.00045582,30]
[362404740,1748253099218,-150.0,0.00045617,30]
[362404741,1748253099228,-243.22904252,0.00045629,30]
[362404742,1748253099237,-211.76312096,0.00045629,30]
[362404743,1748253099247,-207.0,0.00045633,40]
[362404744,1748253099257,-150.0,0.00045639,30]
[362404745,1748253099266,-832.24,0.00045667,31]
[362404746,1748253099276,-243.22904252,0.00045676,30]
[362404747,1748253099286,-211.76312096,0.00045676,30]
[362404748,1748253099295,-506.19,0.00045678,7]
[362404749,1748253099304,-2000.0,0.00045679,7]
[362404750,1748253099313,-3001.13,0.00045679,7]
[362404751,1748253099323,-2000.0,0.0004569,45]
[362404752,1748253099332,-1039.15482947,0.000457,120]
[362404753,1748253099342,-150.0,0.0004571,30]
[362404754,1748253099351,-243.22904252,0.00045723,30]
[362404755,1748253099361,-211.76312096,0.00045723,30]
[362404756,1748253099371,-150.0,0.00045723,30]
[362404757,1748253099381,-150.0,0.00045723,30]
[362404758,1748253099391,-321.858994,0.0004576,120]
[362404759,1748253099400,-150.0,0.0004576,30]
[362404760,1748253099411,-243.22904252,0.0004577,30]
[362404761,1748253099420,-211.76312096,0.0004577,30]
[362404762,1748253099429,-150.0,0.00045782,30]
[362404763,1748253099439,-150.0,0.00045794,30]
[362404764,1748253099448,-150.0,0.00045794,30]
[362404765,1748253099458,-1000.0,0.000458,30]
[362404766,1748253099468,-150.0,0.00045806,120]
[362404767,1748253099478,-243.22904252,0.00045817,30]
[362404768,1748253099488,-211.76312096,0.00045817,30]
[362404769,1748253099499,-150.0,0.00045829,30]
[362404770,1748253099508,-150.0,0.00045854,30]
[362404771,1748253099518,-150.0,0.00045854,30]
[362404772,1748253099528,-300.0,0.00045864,60]